[Event "Titled Tuesday Blitz February 28 Early 2023"]
[White "Mayank Chakraborty"]
[Black "Trost, Edvin"]
[WhiteFideId "25659766"]
[BlackFideId "1729519"]
[WhiteElo "2103"]
[BlackElo "2395"]
[Result "1-0"]
[Round "04"]
[TimeControl "180+2"]
[Date "2023.02.28"]
[WhiteClock "0:00:08"]
[BlackClock "0:00:03"]

1. e4 {[%clk 0:03:00]}  c5 {[%clk 0:02:55]} 2. Nf3 {[%clk 0:03:01]}  g6 {[%clk 0:02:49]} 3. d4 {[%clk 0:02:59]}  cxd4 {[%clk 0:02:50]} 4. Nxd4 {[%clk 0:02:58]}  Bg7 {[%clk 0:02:50]} 5. c4 {[%clk 0:02:58]}  Nc6 {[%clk 0:02:49]} 6. Be3 {[%clk 0:02:57]}  Nf6 {[%clk 0:02:40]} 7. Nc3 {[%clk 0:02:57]}  O-O {[%clk 0:02:40]} 8. Be2 {[%clk 0:02:52]}  d6 {[%clk 0:02:35]} 9. f3 {[%clk 0:02:46]}  h5 {[%clk 0:02:27]} 10. Qd2 {[%clk 0:02:44]}  Bd7 {[%clk 0:02:24]} 11. b3 {[%clk 0:02:42]}  h4 {[%clk 0:02:24]} 12. O-O {[%clk 0:02:40]}  h3 {[%clk 0:02:23]} 13. g3 {[%clk 0:02:37]}  Rc8 {[%clk 0:02:23]} 14. Rad1 {[%clk 0:02:36]}  a6 {[%clk 0:02:18]} 15. a4 {[%clk 0:02:34]}  Ne5 {[%clk 0:02:12]} 16. Bh6 {[%clk 0:02:31]}  Qb6 {[%clk 0:02:10]} 17. Kh1 {[%clk 0:02:27]}  Nc6 {[%clk 0:02:05]} 18. Be3 {[%clk 0:02:14]}  Qd8 {[%clk 0:01:54]} 19. g4 {[%clk 0:02:06]}  Re8 {[%clk 0:01:41]} 20. Nc2 {[%clk 0:01:56]}  Ne5 {[%clk 0:01:36]} 21. g5 {[%clk 0:01:54]}  Nh7 {[%clk 0:01:35]} 22. Nd5 {[%clk 0:01:52]}  e6 {[%clk 0:01:28]} 23. Bb6 {[%clk 0:01:52]}  Qxg5 {[%clk 0:01:26]} 24. Nde3 {[%clk 0:01:34]}  Qf4 {[%clk 0:01:19]} 25. Ng4 {[%clk 0:01:06]}  Qxd2 {[%clk 0:01:11]} 26. Rxd2 {[%clk 0:01:06]}  Nxg4 {[%clk 0:01:11]} 27. fxg4 {[%clk 0:01:07]}  Be5 {[%clk 0:01:12]} 28. Bd4 {[%clk 0:01:06]}  Bc6 {[%clk 0:00:57]} 29. Bxe5 {[%clk 0:00:49]}  dxe5 {[%clk 0:00:58]} 30. Nb4 {[%clk 0:00:47]}  Bxe4+ {[%clk 0:00:51]} 31. Bf3 {[%clk 0:00:47]}  Bxf3+ {[%clk 0:00:51]} 32. Rxf3 {[%clk 0:00:48]}  Ng5 {[%clk 0:00:52]} 33. Rfd3 {[%clk 0:00:46]}  a5 {[%clk 0:00:43]} 34. Nc2 {[%clk 0:00:43]}  Ne4 {[%clk 0:00:39]} 35. Re2 {[%clk 0:00:39]}  Nc5 {[%clk 0:00:40]} 36. Rxh3 {[%clk 0:00:39]}  e4 {[%clk 0:00:40]} 37. Nd4 {[%clk 0:00:33]}  Rcd8 {[%clk 0:00:37]} 38. Nb5 {[%clk 0:00:31]}  Rd3 {[%clk 0:00:38]} 39. Rhe3 {[%clk 0:00:10]}  Red8 {[%clk 0:00:34]} 40. g5 {[%clk 0:00:10]}  Nxb3 {[%clk 0:00:33]} 41. Rxe4 {[%clk 0:00:10]}  Nd2 {[%clk 0:00:32]} 42. Rf4 {[%clk 0:00:09]}  R8d7 {[%clk 0:00:27]} 43. c5 {[%clk 0:00:09]}  Nb3 {[%clk 0:00:26]} 44. Rc4 {[%clk 0:00:05]}  Rd2 {[%clk 0:00:23]} 45. Rxd2 {[%clk 0:00:05]}  Rxd2 {[%clk 0:00:24]} 46. Nd6 {[%clk 0:00:05]}  Nxc5 {[%clk 0:00:21]} 47. Ne8 {[%clk 0:00:03]}  Nd7 {[%clk 0:00:18]} 48. Rc7 {[%clk 0:00:03]}  Kf8 {[%clk 0:00:18]} 49. Nf6 {[%clk 0:00:04]}  Ke7 {[%clk 0:00:07]} 50. Rxb7 {[%clk 0:00:03]}  Kd8 {[%clk 0:00:07]} 51. Ne4 {[%clk 0:00:01]}  Rd1+ {[%clk 0:00:07]} 52. Kg2 {[%clk 0:00:02]}  e5 {[%clk 0:00:07]} 53. Rb5 {[%clk 0:00:02]}  Rd4 {[%clk 0:00:07]} 54. Kf3 {[%clk 0:00:02]}  Rxa4 {[%clk 0:00:07]} 55. Rb7 {[%clk 0:00:02]}  Rd4 {[%clk 0:00:07]} 56. h4 {[%clk 0:00:02]}  a4 {[%clk 0:00:08]} 57. Ra7 {[%clk 0:00:02]}  Ke7 {[%clk 0:00:07]} 58. Ra6 {[%clk 0:00:02]}  Kd8 {[%clk 0:00:04]} 59. Ra7 {[%clk 0:00:02]}  Kc8 {[%clk 0:00:04]} 60. Ra8+ {[%clk 0:00:02]}  Kb7 {[%clk 0:00:05]} 61. Ra5 {[%clk 0:00:03]}  Kb6 {[%clk 0:00:05]} 62. Ra8 {[%clk 0:00:03]}  Kb5 {[%clk 0:00:04]} 63. Nc3+ {[%clk 0:00:03]}  Kb4 {[%clk 0:00:03]} 64. Nxa4 {[%clk 0:00:03]}  Rxh4 {[%clk 0:00:02]} 65. Ra7 {[%clk 0:00:04]}  Rf4+ {[%clk 0:00:02]} 66. Ke3 {[%clk 0:00:03]}  Nc5 {[%clk 0:00:02]} 67. Nb6 {[%clk 0:00:03]}  Re4+ {[%clk 0:00:02]} 68. Kf3 {[%clk 0:00:04]}  Rd4 {[%clk 0:00:02]} 69. Rxf7 {[%clk 0:00:04]}  Kc3 {[%clk 0:00:01]} 70. Rc7 {[%clk 0:00:03]}  Kb4 {[%clk 0:00:01]} 71. Rc6 {[%clk 0:00:04]}  Kb5 {[%clk 0:00:02]} 72. Rxg6 {[%clk 0:00:04]}  Rf4+ {[%clk 0:00:02]} 73. Ke3 {[%clk 0:00:05]}  Ne4 {[%clk 0:00:02]} 74. Nc8 {[%clk 0:00:05]}  Kc5 {[%clk 0:00:02]} 75. Re6 {[%clk 0:00:05]}  Rf5 {[%clk 0:00:01]} 76. Ne7 {[%clk 0:00:05]}  Rxg5 {[%clk 0:00:01]} 77. Kxe4 {[%clk 0:00:06]}  Kc4 {[%clk 0:00:01]} 78. Rc6+ {[%clk 0:00:05]}  Kb5 {[%clk 0:00:02]} 79. Rc1 {[%clk 0:00:06]}  Rg1 {[%clk 0:00:02]} 80. Rxg1 {[%clk 0:00:06]}  Kb4 {[%clk 0:00:03]} 81. Kxe5 {[%clk 0:00:06]}  Kc3 {[%clk 0:00:04]} 82. Nf5 {[%clk 0:00:07]}  Kd2 {[%clk 0:00:05]} 83. Rg4 {[%clk 0:00:08]}  Kc3 {[%clk 0:00:06]} 84. Rd4 {[%clk 0:00:08]}  Kc2 {[%clk 0:00:06]} 85. Ke4 {[%clk 0:00:09]}  Kb2 {[%clk 0:00:07]} 86. Ne3 {[%clk 0:00:10]}  Kb1 {[%clk 0:00:08]} 87. Rc4 {[%clk 0:00:10]}  Kb2 {[%clk 0:00:09]} 88. Kd3 {[%clk 0:00:10]}  Ka1 {[%clk 0:00:01]} 89. Rb4 {[%clk 0:00:11]}  Ka2 {[%clk 0:00:01]} 90. Kc3 {[%clk 0:00:10]}  Ka1 {[%clk 0:00:02]} 91. Nc2+ {[%clk 0:00:09]}  Ka2 {[%clk 0:00:03]} 92. Rb2# {[%clk 0:00:08]} 1-0


[Site "https://www.chess.com"]

[Event "Titled Tuesday Blitz February 28 Early 2023"]
[White "Goltsev, Dmitry"]
[Black "Mendez Fortes, Eduardo Jesus"]
[WhiteFideId "24176710"]
[BlackFideId "3502376"]
[WhiteElo "2302"]
[BlackElo "2307"]
[Result "1-0"]
[Round "04"]
[TimeControl "180+2"]
[Date "2023.02.28"]
[WhiteClock "0:02:48"]
[BlackClock "0:01:34"]

1. e4 {[%clk 0:03:00]}  e5 {[%clk 0:02:54]} 2. Nf3 {[%clk 0:03:01]}  Nc6 {[%clk 0:02:54]} 3. Bb5 {[%clk 0:03:01]}  Nf6 {[%clk 0:02:54]} 4. O-O {[%clk 0:03:01]}  Nxe4 {[%clk 0:02:54]} 5. d4 {[%clk 0:03:02]}  Nd6 {[%clk 0:02:53]} 6. Bxc6 {[%clk 0:03:02]}  dxc6 {[%clk 0:02:54]} 7. dxe5 {[%clk 0:03:03]}  Nf5 {[%clk 0:02:53]} 8. Qxd8+ {[%clk 0:03:04]}  Kxd8 {[%clk 0:02:52]} 9. Rd1+ {[%clk 0:03:05]}  Ke8 {[%clk 0:02:52]} 10. Bg5 {[%clk 0:03:05]}  Be6 {[%clk 0:02:51]} 11. Nc3 {[%clk 0:03:06]}  h6 {[%clk 0:02:51]} 12. Bf4 {[%clk 0:03:03]}  b6 {[%clk 0:02:42]} 13. b3 {[%clk 0:03:02]}  Ne7 {[%clk 0:02:42]} 14. Ne4 {[%clk 0:03:01]}  Bd5 {[%clk 0:02:35]} 15. Nfd2 {[%clk 0:02:59]}  Ng6 {[%clk 0:02:31]} 16. Bg3 {[%clk 0:02:59]}  c5 {[%clk 0:02:30]} 17. c4 {[%clk 0:02:59]}  Bc6 {[%clk 0:02:30]} 18. f4 {[%clk 0:02:59]}  Ne7 {[%clk 0:02:30]} 19. Nc3 {[%clk 0:02:59]}  Nf5 {[%clk 0:02:29]} 20. Bf2 {[%clk 0:02:59]}  h5 {[%clk 0:02:29]} 21. Nf1 {[%clk 0:02:56]}  h4 {[%clk 0:02:27]} 22. Rd2 {[%clk 0:02:56]}  Rd8 {[%clk 0:02:18]} 23. Rad1 {[%clk 0:02:56]}  Rxd2 {[%clk 0:02:16]} 24. Rxd2 {[%clk 0:02:57]}  Be7 {[%clk 0:02:16]} 25. Nd5 {[%clk 0:02:57]}  Bd8 {[%clk 0:02:16]} 26. g4 {[%clk 0:02:52]}  hxg3 {[%clk 0:02:14]} 27. hxg3 {[%clk 0:02:53]}  Bb7 {[%clk 0:02:03]} 28. g4 {[%clk 0:02:51]}  Nh6 {[%clk 0:02:02]} 29. Nfe3 {[%clk 0:02:51]}  c6 {[%clk 0:01:58]} 30. Nc3 {[%clk 0:02:50]}  Bc7 {[%clk 0:01:57]} 31. Ne4 {[%clk 0:02:50]}  Ke7 {[%clk 0:01:35]} 32. g5 {[%clk 0:02:50]}  Ng8 {[%clk 0:01:35]} 33. Nf5+ {[%clk 0:02:50]}  Ke8 {[%clk 0:01:34]} 34. Nfd6+ {[%clk 0:02:48]} 1-0


[Site "https://www.chess.com"]

[Event "Titled Tuesday Blitz February 28 Early 2023"]
[White "Bilan, Danila"]
[Black "Aradhya, Garg"]
[WhiteFideId "24161918"]
[BlackFideId "25006746"]
[WhiteElo "2182"]
[BlackElo "2278"]
[Result "1/2-1/2"]
[Round "04"]
[TimeControl "180+2"]
[Date "2023.02.28"]
[WhiteClock "0:00:06"]
[BlackClock "0:00:09"]

1. d4 {[%clk 0:03:00]}  d5 {[%clk 0:02:59]} 2. Nf3 {[%clk 0:03:00]}  Nf6 {[%clk 0:02:58]} 3. c4 {[%clk 0:03:00]}  c6 {[%clk 0:02:58]} 4. Nc3 {[%clk 0:03:00]}  dxc4 {[%clk 0:02:58]} 5. a4 {[%clk 0:02:59]}  Bf5 {[%clk 0:02:58]} 6. e3 {[%clk 0:02:59]}  e6 {[%clk 0:02:58]} 7. Bxc4 {[%clk 0:02:59]}  Bb4 {[%clk 0:02:59]} 8. O-O {[%clk 0:02:59]}  O-O {[%clk 0:02:59]} 9. Qe2 {[%clk 0:02:58]}  Bg6 {[%clk 0:03:00]} 10. Ne5 {[%clk 0:02:49]}  Nbd7 {[%clk 0:03:00]} 11. Nxg6 {[%clk 0:02:49]}  hxg6 {[%clk 0:03:01]} 12. Rd1 {[%clk 0:02:48]}  Qe7 {[%clk 0:02:58]} 13. Bd2 {[%clk 0:02:45]}  a5 {[%clk 0:02:57]} 14. Rac1 {[%clk 0:02:39]}  e5 {[%clk 0:02:57]} 15. d5 {[%clk 0:02:18]}  e4 {[%clk 0:02:57]} 16. dxc6 {[%clk 0:01:55]}  bxc6 {[%clk 0:02:58]} 17. Ba2 {[%clk 0:01:43]}  Nc5 {[%clk 0:02:41]} 18. Qc4 {[%clk 0:01:29]}  Rad8 {[%clk 0:02:30]} 19. Bb1 {[%clk 0:00:54]}  Rfe8 {[%clk 0:02:02]} 20. Be1 {[%clk 0:00:49]}  Qe5 {[%clk 0:01:55]} 21. h3 {[%clk 0:00:44]}  g5 {[%clk 0:01:54]} 22. Ba2 {[%clk 0:00:37]}  Ne6 {[%clk 0:01:47]} 23. Qxc6 {[%clk 0:00:23]}  g4 {[%clk 0:01:45]} 24. Bxe6 {[%clk 0:00:17]}  fxe6 {[%clk 0:01:42]} 25. h4 {[%clk 0:00:11]}  Qf5 {[%clk 0:00:57]} 26. g3 {[%clk 0:00:10]}  Rf8 {[%clk 0:00:54]} 27. Rxd8 {[%clk 0:00:06]}  Rxd8 {[%clk 0:00:55]} 28. Nb5 {[%clk 0:00:06]}  Bxe1 {[%clk 0:00:52]} 29. Rxe1 {[%clk 0:00:07]}  Rd2 {[%clk 0:00:52]} 30. Rf1 {[%clk 0:00:06]}  Qd5 {[%clk 0:00:19]} 31. Qc8+ {[%clk 0:00:04]}  Kh7 {[%clk 0:00:19]} 32. Nd4 {[%clk 0:00:03]}  e5 {[%clk 0:00:15]} 33. Qf5+ {[%clk 0:00:03]}  Kh8 {[%clk 0:00:14]} 34. Ne6 {[%clk 0:00:03]}  Qd7 {[%clk 0:00:12]} 35. Nxg7 {[%clk 0:00:02]}  Kxg7 {[%clk 0:00:12]} 36. Qg5+ {[%clk 0:00:02]}  Kf7 {[%clk 0:00:12]} 37. Qxe5 {[%clk 0:00:03]}  Qe6 {[%clk 0:00:11]} 38. Qxa5 {[%clk 0:00:03]}  Rxb2 {[%clk 0:00:11]} 39. Qa7+ {[%clk 0:00:03]}  Kg6 {[%clk 0:00:11]} 40. Qa8 {[%clk 0:00:03]}  Re2 {[%clk 0:00:10]} 41. Qb8 {[%clk 0:00:03]}  Rd2 {[%clk 0:00:09]} 42. Qa8 {[%clk 0:00:03]}  Qd6 {[%clk 0:00:09]} 43. Qc8 {[%clk 0:00:03]}  Rd1 {[%clk 0:00:09]} 44. Rxd1 {[%clk 0:00:02]}  Qxd1+ {[%clk 0:00:10]} 45. Kg2 {[%clk 0:00:03]}  Qf3+ {[%clk 0:00:10]} 46. Kg1 {[%clk 0:00:04]}  Qd1+ {[%clk 0:00:10]} 47. Kg2 {[%clk 0:00:04]}  Qd5 {[%clk 0:00:10]} 48. Qb8 {[%clk 0:00:03]}  Qd1 {[%clk 0:00:09]} 49. Qf8 {[%clk 0:00:02]}  Qxa4 {[%clk 0:00:08]} 50. Qh8 {[%clk 0:00:02]}  Qd1 {[%clk 0:00:08]} 51. Qa8 {[%clk 0:00:02]}  Qf3+ {[%clk 0:00:08]} 52. Kg1 {[%clk 0:00:02]}  Qf5 {[%clk 0:00:08]} 53. Kg2 {[%clk 0:00:02]}  Qd5 {[%clk 0:00:09]} 54. Qb8 {[%clk 0:00:03]}  Qe6 {[%clk 0:00:09]} 55. Qf4 {[%clk 0:00:03]}  Qf5 {[%clk 0:00:09]} 56. Qd6 {[%clk 0:00:03]}  Qf3+ {[%clk 0:00:09]} 57. Kg1 {[%clk 0:00:03]}  Qf5 {[%clk 0:00:10]} 58. Kg2 {[%clk 0:00:03]}  Qd7 {[%clk 0:00:10]} 59. Qf8 {[%clk 0:00:03]}  Qf7 {[%clk 0:00:09]} 60. Qd6 {[%clk 0:00:03]}  Kg7 {[%clk 0:00:09]} 61. Qe5 {[%clk 0:00:04]}  Qd7 {[%clk 0:00:09]} 62. Qg5+ {[%clk 0:00:04]}  Kf7 {[%clk 0:00:09]} 63. Qe5 {[%clk 0:00:04]}  Qe7 {[%clk 0:00:09]} 64. Qc3 {[%clk 0:00:05]}  Ke6 {[%clk 0:00:10]} 65. Qc4+ {[%clk 0:00:05]}  Kf5 {[%clk 0:00:09]} 66. Qb5+ {[%clk 0:00:05]}  Qe5 {[%clk 0:00:09]} 67. Qb7 {[%clk 0:00:04]}  Kg6 {[%clk 0:00:10]} 68. Qc8 {[%clk 0:00:04]}  Qf5 {[%clk 0:00:10]} 69. Qd8 {[%clk 0:00:04]}  Qf3+ {[%clk 0:00:09]} 70. Kg1 {[%clk 0:00:05]}  Qe2 {[%clk 0:00:09]} 71. Kg2 {[%clk 0:00:05]}  Qd3 {[%clk 0:00:10]} 72. Qe7 {[%clk 0:00:05]}  Qd5 {[%clk 0:00:10]} 73. Qf8 {[%clk 0:00:05]}  Qf7 {[%clk 0:00:10]} 74. Qd8 {[%clk 0:00:05]}  Nh7 {[%clk 0:00:09]} 75. Qd6+ {[%clk 0:00:05]}  Qf6 {[%clk 0:00:09]} 76. Qd7 {[%clk 0:00:05]}  Qf3+ {[%clk 0:00:09]} 77. Kg1 {[%clk 0:00:05]}  Nf6 {[%clk 0:00:10]} 78. Qd6 {[%clk 0:00:05]}  Qe2 {[%clk 0:00:10]} 79. Kg2 {[%clk 0:00:06]}  Qd3 {[%clk 0:00:10]} 80. Qf8 {[%clk 0:00:06]}  Qd5 {[%clk 0:00:09]} 81. Qe7 {[%clk 0:00:06]}  Qf7 {[%clk 0:00:08]} 82. Qd6 {[%clk 0:00:06]}  Kg7 {[%clk 0:00:09]} 83. Qe5 {[%clk 0:00:05]}  Qd5 {[%clk 0:00:09]} 84. Qe7+ {[%clk 0:00:05]}  Kg6 {[%clk 0:00:09]} 85. Qf8 {[%clk 0:00:06]}  Qf7 {[%clk 0:00:09]} 1/2-1/2


[Site "https://www.chess.com"]

[Event "Titled Tuesday Blitz February 28 Early 2023"]
[White "Dragomirescu, Angela"]
[Black "Wagner, Dennis"]
[WhiteFideId "1209914"]
[BlackFideId "24650684"]
[WhiteElo "2171"]
[BlackElo "2470"]
[Result "1-0"]
[Round "04"]
[TimeControl "180+2"]
[Date "2023.02.28"]
[WhiteClock "0:00:55"]
[BlackClock "0:00:33"]

1. e4 {[%clk 0:02:59]}  c5 {[%clk 0:03:00]} 2. Nf3 {[%clk 0:02:59]}  d6 {[%clk 0:03:00]} 3. d4 {[%clk 0:03:00]}  cxd4 {[%clk 0:03:01]} 4. Nxd4 {[%clk 0:03:00]}  Nf6 {[%clk 0:03:02]} 5. Nc3 {[%clk 0:03:01]}  a6 {[%clk 0:03:02]} 6. Bg5 {[%clk 0:03:01]}  e6 {[%clk 0:03:02]} 7. f4 {[%clk 0:03:02]}  Nbd7 {[%clk 0:02:58]} 8. Bc4 {[%clk 0:02:58]}  b5 {[%clk 0:02:49]} 9. Bxe6 {[%clk 0:02:56]}  fxe6 {[%clk 0:02:49]} 10. Nxe6 {[%clk 0:02:56]}  Qa5 {[%clk 0:02:49]} 11. Qd4 {[%clk 0:02:55]}  b4 {[%clk 0:02:45]} 12. Nd5 {[%clk 0:02:53]}  Nxd5 {[%clk 0:02:13]} 13. exd5 {[%clk 0:02:54]}  Kf7 {[%clk 0:02:11]} 14. Bd8 {[%clk 0:02:35]}  Qb5 {[%clk 0:02:01]} 15. Nc7 {[%clk 0:02:34]}  Qb7 {[%clk 0:01:40]} 16. Nxa8 {[%clk 0:02:32]}  Qxa8 {[%clk 0:01:41]} 17. O-O-O {[%clk 0:02:12]}  Bb7 {[%clk 0:01:40]} 18. Bh4 {[%clk 0:02:03]}  Nf6 {[%clk 0:01:39]} 19. Bxf6 {[%clk 0:01:54]}  gxf6 {[%clk 0:01:40]} 20. Rhe1 {[%clk 0:01:54]}  Be7 {[%clk 0:01:25]} 21. Qe4 {[%clk 0:01:43]}  Qd8 {[%clk 0:01:20]} 22. Qxb4 {[%clk 0:01:38]}  Qd7 {[%clk 0:01:17]} 23. Qe4 {[%clk 0:01:31]}  f5 {[%clk 0:01:14]} 24. Qf3 {[%clk 0:01:29]}  Bf6 {[%clk 0:01:08]} 25. Re6 {[%clk 0:01:26]}  h5 {[%clk 0:01:06]} 26. Rxf6+ {[%clk 0:01:17]}  Kxf6 {[%clk 0:01:06]} 27. Qc3+ {[%clk 0:01:17]}  Kg6 {[%clk 0:01:03]} 28. Qxh8 {[%clk 0:01:18]}  Qf7 {[%clk 0:01:03]} 29. Qb8 {[%clk 0:01:14]}  Bxd5 {[%clk 0:01:01]} 30. Qxd6+ {[%clk 0:01:13]}  Be6 {[%clk 0:01:01]} 31. Re1 {[%clk 0:01:13]}  Kf6 {[%clk 0:01:01]} 32. Rxe6+ {[%clk 0:01:09]}  Qxe6 {[%clk 0:01:01]} 33. Qxe6+ {[%clk 0:01:10]}  Kxe6 {[%clk 0:01:02]} 34. Kd2 {[%clk 0:01:10]}  Kd5 {[%clk 0:01:02]} 35. Kd3 {[%clk 0:01:10]}  h4 {[%clk 0:01:03]} 36. g3 {[%clk 0:01:09]}  h3 {[%clk 0:01:00]} 37. b4 {[%clk 0:01:06]}  a5 {[%clk 0:00:52]} 38. c4+ {[%clk 0:01:07]}  Kc6 {[%clk 0:00:51]} 39. a3 {[%clk 0:01:08]}  a4 {[%clk 0:00:50]} 40. Kd4 {[%clk 0:01:08]}  Kd6 {[%clk 0:00:51]} 41. c5+ {[%clk 0:01:09]}  Kc6 {[%clk 0:00:51]} 42. Kc4 {[%clk 0:01:09]}  Kd7 {[%clk 0:00:51]} 43. b5 {[%clk 0:01:10]}  Kc7 {[%clk 0:00:51]} 44. Kd5 {[%clk 0:01:11]}  Kb7 {[%clk 0:00:51]} 45. c6+ {[%clk 0:01:12]}  Kb6 {[%clk 0:00:51]} 46. Kd6 {[%clk 0:01:12]}  Ka7 {[%clk 0:00:48]} 47. c7 {[%clk 0:01:13]}  Kb7 {[%clk 0:00:46]} 48. Kd7 {[%clk 0:01:10]}  Ka7 {[%clk 0:00:46]} 49. Kd8 {[%clk 0:01:10]}  Kb6 {[%clk 0:00:46]} 50. c8=Q {[%clk 0:01:08]}  Ka7 {[%clk 0:00:45]} 51. Qc6 {[%clk 0:00:57]}  Kb8 {[%clk 0:00:42]} 52. Kd7 {[%clk 0:00:53]}  Ka7 {[%clk 0:00:36]} 53. b6+ {[%clk 0:00:54]}  Kb8 {[%clk 0:00:35]} 54. Qc7+ {[%clk 0:00:54]}  Ka8 {[%clk 0:00:33]} 55. Qa7# {[%clk 0:00:55]} 1-0


[Site "https://www.chess.com"]

[Event "Titled Tuesday Blitz February 28 Early 2023"]
[White "Costachi, Mihnea"]
[Black "Derjabin, Ilja"]
[WhiteFideId "1217518"]
[BlackFideId "14104768"]
[WhiteElo "2456"]
[BlackElo "2309"]
[Result "1-0"]
[Round "04"]
[TimeControl "180+2"]
[Date "2023.02.28"]
[WhiteClock "0:00:14"]
[BlackClock "0:00:04"]

1. Nc3 {[%clk 0:03:00]}  e6 {[%clk 0:02:57]} 2. d4 {[%clk 0:02:59]}  d5 {[%clk 0:02:58]} 3. Bf4 {[%clk 0:02:59]}  Bd6 {[%clk 0:02:54]} 4. Bg3 {[%clk 0:02:58]}  Ne7 {[%clk 0:02:51]} 5. e4 {[%clk 0:02:57]}  Bxg3 {[%clk 0:02:49]} 6. hxg3 {[%clk 0:02:57]}  Nbc6 {[%clk 0:02:42]} 7. Nf3 {[%clk 0:02:56]}  h6 {[%clk 0:02:40]} 8. Qd2 {[%clk 0:02:54]}  b6 {[%clk 0:02:34]} 9. O-O-O {[%clk 0:02:53]}  Bb7 {[%clk 0:02:33]} 10. g4 {[%clk 0:02:52]}  dxe4 {[%clk 0:02:24]} 11. Nxe4 {[%clk 0:02:50]}  Qd5 {[%clk 0:02:14]} 12. Nc3 {[%clk 0:02:50]}  Qa5 {[%clk 0:02:13]} 13. g5 {[%clk 0:02:31]}  h5 {[%clk 0:01:57]} 14. Ne5 {[%clk 0:02:24]}  O-O-O {[%clk 0:01:40]} 15. Nxf7 {[%clk 0:02:14]}  Rxd4 {[%clk 0:01:39]} 16. Qe3 {[%clk 0:02:11]}  Rxd1+ {[%clk 0:01:38]} 17. Kxd1 {[%clk 0:02:12]}  Rf8 {[%clk 0:01:32]} 18. Bc4 {[%clk 0:02:00]}  Kb8 {[%clk 0:01:23]} 19. Bxe6 {[%clk 0:01:55]}  Nf5 {[%clk 0:01:12]} 20. Qd3 {[%clk 0:01:31]}  g6 {[%clk 0:01:04]} 21. Bxf5 {[%clk 0:01:13]}  gxf5 {[%clk 0:01:03]} 22. g6 {[%clk 0:01:10]}  Rg8 {[%clk 0:00:50]} 23. Rxh5 {[%clk 0:01:03]}  Rxg6 {[%clk 0:00:30]} 24. Qxf5 {[%clk 0:00:57]}  Qxf5 {[%clk 0:00:28]} 25. Rxf5 {[%clk 0:00:58]}  Rxg2 {[%clk 0:00:29]} 26. Nh6 {[%clk 0:00:39]}  Nd4 {[%clk 0:00:25]} 27. Rf8+ {[%clk 0:00:39]}  Bc8 {[%clk 0:00:26]} 28. Ne2 {[%clk 0:00:33]}  Ne6 {[%clk 0:00:23]} 29. Rf6 {[%clk 0:00:33]}  Kb7 {[%clk 0:00:22]} 30. Nf5 {[%clk 0:00:31]}  Rxf2 {[%clk 0:00:20]} 31. Nd6+ {[%clk 0:00:31]}  cxd6 {[%clk 0:00:21]} 32. Rxf2 {[%clk 0:00:32]}  Kc6 {[%clk 0:00:21]} 33. Kd2 {[%clk 0:00:32]}  Ba6 {[%clk 0:00:21]} 34. Ke3 {[%clk 0:00:31]}  Nc5 {[%clk 0:00:20]} 35. Nd4+ {[%clk 0:00:31]}  Kd5 {[%clk 0:00:20]} 36. Rf5+ {[%clk 0:00:31]}  Kc4 {[%clk 0:00:21]} 37. a3 {[%clk 0:00:26]}  Bc8 {[%clk 0:00:19]} 38. Rf4 {[%clk 0:00:22]}  Kd5 {[%clk 0:00:18]} 39. b3 {[%clk 0:00:23]}  Ke5 {[%clk 0:00:17]} 40. Rh4 {[%clk 0:00:20]}  a5 {[%clk 0:00:16]} 41. Rh5+ {[%clk 0:00:19]}  Kf6 {[%clk 0:00:15]} 42. Rh6+ {[%clk 0:00:19]}  Ke5 {[%clk 0:00:15]} 43. c4 {[%clk 0:00:18]}  Bd7 {[%clk 0:00:12]} 44. b4 {[%clk 0:00:18]}  axb4 {[%clk 0:00:12]} 45. axb4 {[%clk 0:00:19]}  Na6 {[%clk 0:00:10]} 46. Rh5+ {[%clk 0:00:19]}  Kf6 {[%clk 0:00:10]} 47. Nc2 {[%clk 0:00:18]}  Bf5 {[%clk 0:00:09]} 48. Nd4 {[%clk 0:00:16]}  Bg6 {[%clk 0:00:08]} 49. Rb5 {[%clk 0:00:15]}  Nc7 {[%clk 0:00:03]} 50. Rxb6 {[%clk 0:00:15]}  Ke5 {[%clk 0:00:03]} 51. Nf3+ {[%clk 0:00:15]}  Kf6 {[%clk 0:00:04]} 52. Kd4 {[%clk 0:00:14]}  Ne6+ {[%clk 0:00:03]} 53. Kc3 {[%clk 0:00:15]}  Be4 {[%clk 0:00:02]} 54. Nd4 {[%clk 0:00:14]}  Nf4 {[%clk 0:00:03]} 55. Rxd6+ {[%clk 0:00:14]}  Ke5 {[%clk 0:00:03]} 56. Rd8 {[%clk 0:00:14]}  Ne2+ {[%clk 0:00:04]} 57. Nxe2 {[%clk 0:00:14]} 1-0


[Site "https://www.chess.com"]

[Event "Titled Tuesday Blitz February 28 Early 2023"]
[White "Malek, Jan"]
[Black "Garakov, Mikhael"]
[WhiteFideId "21864080"]
[BlackFideId "4169034"]
[WhiteElo "2255"]
[BlackElo "2347"]
[Result "0-1"]
[Round "04"]
[TimeControl "180+2"]
[Date "2023.02.28"]
[WhiteClock "0:00:04"]
[BlackClock "0:00:09"]

1. Nf3 {[%clk 0:03:00]}  c5 {[%clk 0:02:21]} 2. g3 {[%clk 0:02:58]}  b6 {[%clk 0:02:20]} 3. Bg2 {[%clk 0:02:57]}  Bb7 {[%clk 0:02:21]} 4. O-O {[%clk 0:02:57]}  Nf6 {[%clk 0:02:21]} 5. b3 {[%clk 0:02:56]}  e6 {[%clk 0:02:20]} 6. Bb2 {[%clk 0:02:52]}  Be7 {[%clk 0:02:20]} 7. c4 {[%clk 0:02:51]}  O-O {[%clk 0:02:19]} 8. Nc3 {[%clk 0:02:51]}  d6 {[%clk 0:02:19]} 9. d4 {[%clk 0:02:51]}  cxd4 {[%clk 0:02:18]} 10. Qxd4 {[%clk 0:02:52]}  a6 {[%clk 0:02:14]} 11. Rfd1 {[%clk 0:02:51]}  Nbd7 {[%clk 0:02:14]} 12. e4 {[%clk 0:02:46]}  Qc8 {[%clk 0:02:11]} 13. Rac1 {[%clk 0:02:44]}  Rd8 {[%clk 0:01:43]} 14. h3 {[%clk 0:02:33]}  Nc5 {[%clk 0:01:43]} 15. Nd2 {[%clk 0:02:29]}  Qc7 {[%clk 0:01:40]} 16. Nf1 {[%clk 0:02:29]}  Rac8 {[%clk 0:01:39]} 17. Ne3 {[%clk 0:02:29]}  Qb8 {[%clk 0:01:36]} 18. b4 {[%clk 0:02:17]}  Ncd7 {[%clk 0:01:34]} 19. a3 {[%clk 0:02:14]}  Qa8 {[%clk 0:01:10]} 20. f4 {[%clk 0:02:02]}  h6 {[%clk 0:01:07]} 21. Kh2 {[%clk 0:01:45]}  Bf8 {[%clk 0:00:56]} 22. Ng4 {[%clk 0:01:27]}  Nxg4+ {[%clk 0:00:50]} 23. hxg4 {[%clk 0:01:28]}  Nf6 {[%clk 0:00:50]} 24. Bf3 {[%clk 0:01:26]}  b5 {[%clk 0:00:47]} 25. cxb5 {[%clk 0:01:20]}  axb5 {[%clk 0:00:46]} 26. Nxb5 {[%clk 0:01:10]}  Bxe4 {[%clk 0:00:44]} 27. Bxe4 {[%clk 0:01:08]}  Nxe4 {[%clk 0:00:43]} 28. Rxc8 {[%clk 0:00:28]}  Rxc8 {[%clk 0:00:42]} 29. Rc1 {[%clk 0:00:28]}  Nf6 {[%clk 0:00:39]} 30. Rxc8 {[%clk 0:00:17]}  Qxc8 {[%clk 0:00:38]} 31. Qd1 {[%clk 0:00:13]}  e5 {[%clk 0:00:33]} 32. fxe5 {[%clk 0:00:11]}  Nxg4+ {[%clk 0:00:32]} 33. Kg1 {[%clk 0:00:11]}  dxe5 {[%clk 0:00:30]} 34. Nc3 {[%clk 0:00:10]}  Bc5+ {[%clk 0:00:26]} 35. bxc5 {[%clk 0:00:03]}  Qxc5+ {[%clk 0:00:26]} 36. Kf1 {[%clk 0:00:03]}  Ne3+ {[%clk 0:00:26]} 37. Ke2 {[%clk 0:00:04]}  Nxd1 {[%clk 0:00:27]} 38. Kxd1 {[%clk 0:00:05]}  Qc4 {[%clk 0:00:22]} 39. Kc2 {[%clk 0:00:05]}  e4 {[%clk 0:00:22]} 40. a4 {[%clk 0:00:06]}  Qd3+ {[%clk 0:00:20]} 41. Kb3 {[%clk 0:00:06]}  e3 {[%clk 0:00:20]} 42. Kb4 {[%clk 0:00:04]}  e2 {[%clk 0:00:20]} 43. Nxe2 {[%clk 0:00:05]}  Qxe2 {[%clk 0:00:21]} 44. Bd4 {[%clk 0:00:05]}  Qg4 {[%clk 0:00:20]} 45. Kc5 {[%clk 0:00:05]}  Qxg3 {[%clk 0:00:21]} 46. a5 {[%clk 0:00:06]}  Qc7+ {[%clk 0:00:20]} 47. Kb5 {[%clk 0:00:06]}  Qd7+ {[%clk 0:00:20]} 48. Kc5 {[%clk 0:00:06]}  h5 {[%clk 0:00:15]} 49. Be5 {[%clk 0:00:05]}  h4 {[%clk 0:00:14]} 50. a6 {[%clk 0:00:05]}  g5 {[%clk 0:00:10]} 51. Bb8 {[%clk 0:00:04]}  Qc8+ {[%clk 0:00:09]} 0-1


[Site "https://www.chess.com"]